bitfinex/quotes_ETHUSD_20241022
["timestamp","ask_amount","ask_price","bid_price","bid_amount"]
[1729558377760,3.78882,2639.4,2638.8,8.691926]
[1729558378078,1.6441,2639.5,2638.9,3.78934]
[1729558378370,3.78888,2639.4,2638.8,3.7895]
[1729558378872,3.78888,2639.4,2638.8,7.57901]
[1729558379239,5.976038,2639.5,2638.8,3.7895]
[1729558379675,3.78898,2639.3,2638.7,3.78973]
[1729558379884,2.187358,2639.5,2638.8,3.0]
[1729558380175,0.58885726,2639.4,2638.8,3.0]
[1729558380479,8.16640726,2639.4,2638.8,3.0]
[1729558380642,3.78892,2639.3,2638.8,3.0]
[1729558381063,4.37758726,2639.4,2638.8,6.78959]
[1729558382152,3.78873,2639.4,2638.8,6.86537417]
[1729558382563,3.78899,2639.3,2638.8,3.0]
[1729558382941,3.78873,2639.4,2638.8,6.78959]
[1729558383484,3.78893,2639.3,2638.8,3.0]
[1729558383643,3.78873,2639.4,2638.8,3.0]
[1729558383843,5.43269,2639.5,2638.9,3.78934]
[1729558384043,6.72493246,2639.5,2638.9,3.78934]
[1729558384472,6.72493246,2639.5,2638.9,7.5787]
[1729558384872,6.72493246,2639.5,2638.9,3.78934]
[1729558385684,3.78875,2639.4,2638.9,3.78934]
[1729558386591,2.93634246,2639.5,2638.9,3.78934]
[1729558386592,1.6441,2639.5,2638.9,3.78934]
[1729558386760,3.78852,2639.6,2639.0,0.07578166]
[1729558386959,3.78852,2639.6,2639.1,3.78915]
[1729558388268,7.5771,2639.6,2639.0,4.5265]
[1729558388580,3.78852,2639.6,2639.1,3.78913]
[1729558389749,9.20402,2639.8,2639.2,3.78901]
[1729558389950,9.20402,2639.8,2639.1,3.78913]
[1729558389951,3.78835,2639.7,2639.1,7.57822]
[1729558390283,1.6275,2639.8,2639.4,3.78872]
[1729558390484,5.29236,2640.2,2639.6,3.78841]
[1729558390684,3.78781,2640.1,2639.5,5.31054]
[1729558390844,5.29236,2640.2,2639.7,3.78825]
[1729558391050,3.78766,2640.2,2639.7,3.78825]
[1729558391246,3.78766,2640.2,2639.7,4.70569196]
[1729558391591,3.78766,2640.2,2639.7,0.91744196]
[1729558391893,3.78766,2640.2,2639.7,4.70572196]
[1729558392090,3.78816,2639.9,2639.2,3.78899]
[1729558392253,3.78812,2639.9,2639.4,3.0]
[1729558392586,3.78812,2639.9,2639.3,3.0]
[1729558392587,1.5102,2639.6,2639.3,3.0]
[1729558392791,3.78868,2639.5,2639.1,3.0]
[1729558392998,1.5102,2639.6,2639.1,6.78916]
[1729558393153,1.5102,2639.6,2639.1,7.468083]
[1729558393553,3.78809,2639.9,2639.1,7.467953]
[1729558393781,3.78825,2639.8,2639.2,3.78899]
[1729558393989,3.78825,2639.8,2639.2,3.78893]
[1729558394191,3.78825,2639.8,2639.2,4.9146373]
[1729558394691,3.78825,2639.8,2639.2,8.7035773]
[1729558394887,3.78832,2639.7,2639.2,4.9146373]
[1729558395189,3.78832,2639.7,2639.2,1.1257073]
[1729558395395,3.78856,2639.6,2639.1,3.0]
[1729558395556,3.7886,2639.5,2639.0,6.78929]
[1729558395957,3.78845,2639.6,2638.9,3.78945]
[1729558396169,1.6501,2639.5,2639.0,3.7893]
[1729558396488,1.6501,2639.5,2639.0,0.908365]
[1729558396699,5.43877,2639.5,2639.0,0.908365]
[1729558397001,1.6501,2639.5,2639.0,4.697565]
[1729558397355,5.43872,2639.5,2639.0,0.908365]
[1729558397557,5.43872,2639.5,2639.0,4.697585]
[1729558397794,5.43872,2639.5,2639.0,0.908365]
[1729558398094,5.43872,2639.5,2638.9,3.78935]
[1729558398496,5.43872,2639.5,2638.9,7.57873]
[1729558399094,5.43872,2639.5,2639.0,3.78921]
[1729558399265,1.6475,2639.8,2639.1,3.78913]
[1729558399462,5.42732,2640.1,2639.6,3.78837]
[1729558399664,3.78782,2640.1,2639.6,4.846073]
[1729558399888,3.78773,2640.1,2639.6,4.846073]
[1729558400195,3.78773,2640.1,2639.4,6.78863]
[1729558400495,3.78773,2640.1,2639.5,3.78856]
[1729558400661,7.57558,2640.1,2639.5,3.78856]
[1729558400972,1.6294,2640.0,2639.5,3.0]
[1729558401173,1.6294,2640.0,2639.3,1.5272]
[1729558401357,1.6294,2640.0,2639.4,0.52848694]
[1729558401561,5.4174,2640.0,2639.5,3.78851]
[1729558401887,3.78826,2639.8,2639.2,3.0]
[1729558402181,3.78826,2639.8,2639.1,3.0]
[1729558402182,3.78848,2639.6,2639.1,3.0]
[1729558402358,3.78826,2639.8,2639.1,3.0]
[1729558402562,3.78826,2639.8,2639.2,3.78902]
[1729558402792,3.78826,2639.8,2639.3,3.0]
[1729558403100,5.33061461,2640.0,2639.1,3.0]
[1729558403261,3.78861,2639.5,2639.1,3.0]
[1729558403467,3.78839,2639.7,2639.1,6.78915]
[1729558403679,4.546056,2639.7,2639.1,6.78915]
[1729558403885,3.7886,2639.5,2639.1,3.0]
[1729558405098,8.334476,2639.7,2639.1,3.0]
[1729558405305,3.78846,2639.6,2639.1,6.78914]
[1729558405985,3.78859,2639.5,2639.1,3.0]
[1729558406292,7.57679,2639.7,2639.1,6.78915]
[1729558406499,8.334469,2639.7,2639.1,6.78915]
[1729558406698,3.78882,2639.4,2638.9,3.0]
[1729558407297,3.78882,2639.4,2638.8,3.0]
[1729558407677,3.78882,2639.4,2638.7,5.41993]
[1729558407876,0.378882,2639.3,2638.7,5.41993]
[1729558408373,3.78911,2639.2,2638.7,1.6302]
[1729558408587,3.78911,2639.2,2638.5,10.503163]
[1729558408588,3.78932,2639.0,2638.5,10.503163]
[1729558408908,5.38208,2638.6,2638.5,10.503163]
[1729558409114,9.08329461,2638.6,2638.5,10.503163]
[1729558409405,6.66939146,2638.6,2638.5,10.503163]
[1729558409567,10.92060607,2638.6,2638.5,10.503163]
[1729558410059,11.26717777,2638.6,2638.5,10.503163]
[1729558410309,10.92060607,2638.6,2638.5,10.503163]
[1729558410514,11.26697174,2638.6,2638.5,10.503163]
[1729558411511,10.92060607,2638.6,2638.5,10.503163]
[1729558412210,11.26687409,2638.6,2638.5,10.503163]
[1729558412381,10.92060607,2638.6,2638.5,10.503163]
[1729558412585,11.2666951,2638.6,2638.5,10.503163]
[1729558412791,10.92060607,2638.6,2638.5,10.503163]
[1729558414217,6.66939146,2638.6,2638.5,10.503163]
[1729558414515,19.82,2638.7,2638.5,10.503163]
[1729558414731,3.78988,2638.6,2638.5,10.503163]
[1729558417027,6.00088,2638.6,2638.5,10.503163]
[1729558417997,3.78974,2638.7,2638.5,10.503163]
[1729558418207,3.78988,2638.6,2638.5,10.503163]
[1729558418587,7.49109461,2638.6,2638.5,10.503163]
[1729558420035,23.60963,2638.8,2638.5,10.503163]
[1729558420231,3.78963,2638.8,2638.5,10.503163]
[1729558420926,3.78923,2639.1,2638.5,13.5032122]
[1729558421220,3.78923,2639.1,2638.6,3.78987]
[1729558421639,9.09424461,2639.2,2638.6,3.78979]
[1729558421944,3.70121461,2640.0,2638.9,3.78936]
[1729558421945,5.37519,2639.5,2638.9,3.78936]
[1729558422105,5.28771461,2639.5,2638.9,0.378936]
[1729558422305,5.28771461,2639.5,2638.6,6.78988]
[1729558422306,3.78908,2639.2,2638.6,6.78988]
[1729558422613,3.78908,2639.2,2638.7,3.78973]
[1729558422817,3.78884,2639.4,2638.7,3.78962]
[1729558423020,3.7889,2639.3,2638.7,3.78962]
[1729558423215,7.57791,2639.3,2638.7,6.19789922]
[1729558423614,3.78903,2639.2,2638.7,6.19789922]
[1729558423815,3.7889,2639.3,2638.7,6.19789922]
[1729558424611,3.7891,2639.2,2638.7,6.19789922]
[1729558425722,3.78954,2638.9,2638.6,3.0]
[1729558425911,3.78966,2638.8,2638.5,12.071963]
[1729558426548,3.78939,2639.0,2638.5,12.071963]
[1729558427338,3.78988,2638.6,2638.5,10.503163]
[1729558427539,7.49109461,2638.6,2638.5,10.503163]
[1729558427742,8.04109461,2638.6,2638.5,10.503163]
[1729558427943,9.54799461,2638.6,2638.5,10.503163]
[1729558428646,2.0569,2638.6,2638.5,10.503163]
[1729558429075,0.55,2638.6,2638.5,10.503163]
[1729558429223,1.5069,2638.8,2638.5,10.503163]
[1729558429562,0.55,2638.8,2638.5,10.503163]
[1729558430128,3.78984,2638.7,2638.5,10.503163]
[1729558430460,4.33962,2638.8,2638.5,10.503163]
[1729558430768,0.55,2638.8,2638.5,10.503163]
[1729558431562,4.33961,2638.8,2638.5,10.503163]
[1729558431929,0.55,2638.8,2638.5,10.503163]
[1729558432271,3.78951,2638.9,2638.5,10.503163]
[1729558432599,0.55,2638.6,2638.5,10.503163]
[1729558433762,4.33988,2638.6,2638.5,10.503163]
[1729558435354,0.55,2638.6,2638.5,10.503163]
[1729558435929,19.82,2639.0,2638.5,10.503163]
[1729558436242,19.82,2639.0,2638.6,1.554]
[1729558437079,19.82,2639.0,2638.7,3.78961]
[1729558437285,19.82,2639.0,2638.8,3.78958]
[1729558437455,19.82,2639.0,2638.7,3.78961]
[1729558438382,3.78907,2639.2,2638.6,6.9285793]
[1729558438679,0.55,2639.1,2638.6,6.9285793]
[1729558438845,4.33918,2639.1,2638.6,3.1387093]
[1729558439041,3.78931,2639.0,2638.6,1.554]
[1729558439241,0.55,2638.9,2638.6,4.554]
[1729558439685,0.55,2639.0,2638.6,4.554]
[1729558440262,4.33939,2639.0,2638.6,4.554]
[1729558440450,3.78862,2639.5,2638.5,10.503163]
[1729558440451,4.33988,2638.6,2638.5,10.503163]
[1729558440649,0.55,2638.6,2638.5,10.503163]
[1729558441045,25.09111461,2639.1,2638.5,10.503163]
[1729558441246,4.33931,2639.0,2638.5,14.293193]
[1729558441841,8.12875,2639.0,2638.5,10.503163]
[1729558442048,4.33931,2639.0,2638.5,10.503163]
[1729558442344,7.29114,2639.0,2638.5,10.503163]
[1729558442785,4.33961,2638.8,2638.5,10.503163]
[1729558443160,0.55,2638.9,2638.5,10.503163]
[1729558443564,4.33949,2638.9,2638.5,10.503163]
[1729558444248,0.55,2638.9,2638.5,10.503163]
[1729558445486,4.33949,2638.9,2638.5,10.503163]
[1729558445785,0.55,2638.9,2638.5,10.503163]
[1729558446094,0.55,2638.9,2638.6,1.5799]
[1729558447752,4.33948,2638.9,2638.6,1.5799]
[1729558447949,0.55,2638.9,2638.6,1.5799]
[1729558448564,0.55,2638.7,2638.5,10.503163]
[1729558448977,0.55,2638.8,2638.5,10.503163]
[1729558449179,0.55,2638.9,2638.5,10.503163]
[1729558449493,4.33948,2638.9,2638.5,10.503163]
[1729558450074,0.55,2638.7,2638.5,10.503163]
[1729558450688,0.55,2638.9,2638.5,10.503163]
[1729558452998,0.55,2638.9,2638.5,14.293183]
[1729558453171,0.55,2639.1,2638.5,14.293183]
[1729558453369,4.33917,2639.1,2638.5,14.293183]
[1729558453900,0.55,2639.1,2638.5,14.293183]
[1729558454200,4.33918,2639.1,2638.5,14.293183]
[1729558454786,0.55,2639.1,2638.6,3.78977]
[1729558455139,0.55,2639.3,2638.8,5.42072]
[1729558455809,0.55,2639.4,2639.0,3.78929]
[1729558455968,1.5055,2639.7,2638.8,1.6312]
[1729558456172,0.34653928,2639.6,2639.2,3.78895]
[1729558456484,3.78831,2639.7,2639.3,1.6524]
[1729558456656,3.78854,2639.6,2639.3,1.6524]
[1729558456857,3.78882,2639.4,2638.8,4.5206]
[1729558457079,3.7889,2639.3,2638.8,4.5206]
[1729558457595,0.55,2639.2,2638.8,4.5206]
[1729558457975,0.55,2639.3,2638.9,3.78936]
[1729558458182,0.55,2639.4,2638.9,3.78936]
[1729558458365,0.55,2639.4,2638.9,4.320356]
[1729558458560,0.55,2639.4,2639.0,3.78923]
[1729558458917,4.33845,2639.6,2639.1,3.78911]
[1729558459103,0.55,2639.6,2639.3,1.5374]
[1729558459696,0.01901898,2640.1,2639.8,3.78812]
[1729558459995,1.55104302,2640.4,2640.0,3.78783]
[1729558460211,1.55104302,2640.4,2640.1,1.5706]
[1729558461693,0.55,2640.3,2640.1,1.5706]
[1729558462093,0.55,2640.3,2640.0,3.78787]
[1729558462713,1.55104302,2640.4,2640.1,5.42356614]
[1729558462912,1.55104302,2640.4,2640.3,5.43404]
[1729558463319,1.55104302,2640.4,2640.3,12.13525461]
[1729558463624,1.94043658,2640.5,2640.4,8.4371]
[1729558464622,2.3285239,2640.7,2640.6,5.36031]
[1729558464931,2.3285239,2640.7,2640.6,9.575071]
[1729558465396,2.71661121,2641.0,2640.9,3.78658]
[1729558465602,2.71661121,2641.0,2640.9,12.07239461]
[1729558467887,3.86634052,2641.5,2641.0,3.0]
[1729558468093,0.55,2641.4,2641.1,1.50723946]
[1729558470730,0.55,2641.5,2641.1,1.50723946]
[1729558471290,0.55,2641.7,2641.1,5.29342946]
[1729558471494,0.55,2641.7,2641.2,0.82934295]
[1729558473211,0.55,2641.4,2641.2,0.82934295]
[1729558473420,3.78584,2641.5,2641.0,3.0]
[1729558473421,0.55,2641.5,2641.0,6.78642]
[1729558474110,0.55,2641.5,2641.0,3.0]
[1729558474713,0.55,2641.9,2641.1,0.07572054]
[1729558475031,4.33518,2641.9,2641.3,3.78596]
[1729558476026,0.55,2641.9,2641.3,3.78596]
[1729558476209,0.55,2641.9,2641.4,3.78585]
[1729558477240,0.55,2641.7,2641.2,9.16079]
[1729558477445,0.55,2641.7,2641.3,3.78588]
[1729558477640,0.55,2641.8,2641.3,0.99967735]
[1729558477852,0.55,2641.8,2641.3,4.78567735]
[1729558478968,3.78525,2641.9,2641.3,4.78567735]
[1729558478969,0.55,2641.9,2641.3,4.78567735]
[1729558480541,4.33517,2641.9,2641.3,4.78567735]
[1729558481429,0.55,2641.9,2641.3,4.78567735]
[1729558481661,0.55,2641.9,2641.4,1.01604173]
[1729558482157,0.55,2641.9,2641.4,4.80186173]
[1729558483159,0.55,2642.0,2641.4,4.80186173]
[1729558483450,0.55,2642.0,2641.6,3.78555]
[1729558483654,3.70121461,2642.3,2641.9,3.78505]
[1729558483655,1.5454,2642.3,2641.9,3.78505]
[1729558483829,0.01,2642.8,2641.7,4.163885]
[1729558483830,5.24661461,2642.5,2641.7,4.163885]
[1729558484258,7.48562461,2642.5,2641.9,3.78512]
[1729558484464,3.78441,2642.5,2641.9,3.78512]
[1729558484675,7.56882,2642.5,2641.9,3.78512]
[1729558484827,7.56881,2642.5,2641.9,3.78512]
[1729558485029,3.78444,2642.4,2641.9,3.78512]
[1729558485475,0.55,2642.3,2641.9,3.78512]
[1729558485773,0.55,2642.5,2642.0,3.7849]
[1729558486076,0.55,2642.5,2642.2,3.78462]
[1729558486282,0.55,2642.5,2642.2,1.6231]
[1729558486506,0.55,2642.5,2642.2,5.40771]
[1729558486899,0.01896447,2642.6,2642.2,5.40771]
[1729558486900,0.01896447,2642.6,2642.2,5.48339841]
[1729558487086,3.78386,2642.8,2642.3,0.92681684]
[1729558487281,5.31425,2642.9,2642.3,4.71136684]
[1729558487483,3.78353,2643.1,2642.5,3.0]
[1729558488106,3.78353,2643.1,2642.5,6.78428]
[1729558488411,7.48474461,2643.1,2642.4,1.5716]
[1729558488628,1.6626,2643.2,2642.6,3.78405]
[1729558488802,3.78289,2643.5,2642.7,0.07567294]
[1729558488803,5.40119,2643.5,2642.7,0.07567294]
[1729558489018,3.70121461,2643.6,2642.8,5.37926]
[1729558489228,5.40088,2643.7,2643.0,3.78355]
[1729558489530,7.48393461,2643.6,2643.0,3.78355]
[1729558490037,7.48393461,2643.6,2642.9,3.78368]
[1729558490328,3.70121461,2643.6,2642.9,3.78368]
[1729558490537,7.48404461,2643.6,2643.0,3.78354]
[1729558490894,8.77253707,2643.6,2643.0,3.78354]
[1729558491426,4.33288,2643.5,2642.8,9.16303]
[1729558491604,3.78319,2643.3,2642.8,1.5955]
[1729558491812,0.55,2643.2,2642.8,1.5955]
[1729558492012,0.55,2643.2,2642.8,2.811864]
[1729558492013,4.33331,2643.2,2642.8,2.811864]
[1729558492210,4.33331,2643.2,2642.8,1.5955]
[1729558492439,3.78354,2643.1,2642.5,4.5729]
[1729558492781,0.55,2643.0,2642.5,4.5729]
[1729558492902,0.55,2643.0,2642.5,4.64857808]
[1729558493248,0.55,2642.8,2642.5,2.41619481]
[1729558493400,0.55,2642.8,2642.5,5.41619481]
[1729558493595,0.55,2642.8,2642.5,9.27615288]
[1729558493831,0.55,2642.8,2642.2,5.29052]
[1729558494036,0.55,2642.8,2642.3,3.0]
[1729558494234,0.55,2642.8,2642.3,6.78449]
[1729558494539,4.25121461,2642.8,2642.3,3.0]
[1729558494850,4.25121461,2642.8,2642.2,5.29051]
[1729558494851,0.55,2642.6,2642.2,1.5059]
[1729558496049,0.55,2642.6,2642.0,3.7849]
[1729558496050,0.55,2642.6,2642.1,3.0]
[1729558496343,0.55,2643.0,2642.4,3.78432]
[1729558496511,0.55,2643.1,2642.5,3.85986804]
[1729558496718,4.33343,2643.1,2642.6,3.78406]
[1729558498035,9.37036907,2643.1,2642.5,6.78426]
[1729558498211,3.70121461,2642.9,2642.5,3.0]
[1729558498405,0.55,2642.8,2642.5,3.0]
[1729558498952,0.55,2643.0,2642.5,3.0]
[1729558499121,4.33361,2643.0,2642.5,3.0]
[1729558499508,0.55,2643.0,2642.5,3.835284]
[1729558499736,0.55,2643.0,2642.5,3.91096205]
[1729558500217,0.55,2643.0,2642.5,3.835284]
[1729558500859,0.55,2643.0,2642.5,7.69524207]
[1729558501448,0.55,2643.0,2642.5,7.619564]
[1729558501767,0.55,2643.0,2642.5,3.835284]
[1729558501768,4.33368,2643.0,2642.5,3.835284]
[1729558501950,4.33368,2643.0,2642.5,3.0]
[1729558502146,0.55,2643.0,2642.5,3.0]
[1729558502379,4.33362,2643.0,2642.5,3.0]
[1729558503742,0.55,2642.7,2642.4,3.0]
[1729558503942,0.55,2642.7,2642.5,6.78428]
[1729558504142,0.55,2642.8,2642.5,6.78428]
[1729558505089,0.55,2642.8,2642.4,3.0]
[1729558505246,0.55,2642.8,2641.9,4.7388145]
[1729558505247,7.48523461,2642.7,2642.1,1.6023]
[1729558505444,0.55,2642.6,2642.3,3.0]
[1729558505759,0.55,2642.8,2642.3,6.78447]
[1729558505972,3.78401,2642.7,2642.1,4.6023]
[1729558506149,0.55,2642.6,2642.1,4.6023]
[1729558506345,4.33419,2642.6,2642.1,4.6023]
[1729558506891,4.3343,2642.5,2641.9,1.5537]
[1729558507183,2.1616,2642.5,2642.0,3.785]
[1729558507487,2.1616,2642.5,2641.8,7.57039]
[1729558507488,5.94592,2642.5,2641.8,7.57039]
[1729558507795,2.1616,2642.5,2642.0,3.78499]
[1729558508004,2.1616,2642.5,2642.0,3.78491]
[1729558508203,3.19530807,2642.5,2642.1,3.78484]
[1729558508410,3.19530807,2642.5,2642.2,3.78468]
[1729558509081,0.55,2642.5,2642.2,3.78468]
[1729558509314,19.82,2643.0,2642.5,3.78429]
[1729558509518,1.5703,2643.0,2642.5,3.78429]
[1729558509866,1.5703,2643.0,2642.2,4.6642]
[1729558510103,1.5703,2643.0,2642.7,3.78386]
[1729558511623,0.55,2642.9,2642.7,3.78386]
[1729558512495,0.55,2643.1,2642.7,3.78386]
[1729558512892,4.33343,2643.1,2642.5,7.56842]
[1729558513204,4.33343,2643.1,2642.5,3.78419]
[1729558513378,5.304071,2643.1,2642.5,3.78419]
[1729558513581,5.304071,2643.1,2642.5,7.56839]
[1729558513794,3.78359,2643.0,2642.5,3.78419]
[1729558514116,3.78444,2642.4,2642.0,1.5122]
[1729558514320,0.55,2642.4,2641.9,3.78508]
[1729558514910,0.55,2642.4,2642.0,3.78501]
[1729558515104,0.55,2642.4,2641.8,3.78518]
[1729558515306,0.55,2642.4,2642.0,3.78496]
[1729558516977,0.55,2642.6,2642.1,3.78478]
[1729558517419,5.30778,2642.8,2641.8,3.77691038]
[1729558517420,1.5239,2642.8,2642.4,3.78442]
[1729558517585,3.78401,2642.7,2642.2,3.78472]
[1729558518524,0.55,2642.7,2642.0,5.42121]
[1729558518813,0.55,2642.7,2642.0,6.33345246]
[1729558519526,0.55,2642.7,2642.1,3.78475]
[1729558519828,4.33402,2642.7,2642.1,3.78475]
[1729558520882,0.55,2642.5,2642.0,5.42121]
[1729558521087,0.55,2642.5,2642.1,3.78476]
[1729558521724,18.97564084,2643.0,2642.0,5.42121]
[1729558521884,3.7842,2642.6,2642.0,5.42121]
[1729558522085,3.7842,2642.6,2642.1,3.78476]
[1729558523457,3.7842,2642.6,2641.9,3.0]
[1729558523618,7.56844,2642.6,2642.0,3.78499]
[1729558524020,0.55,2642.5,2642.0,3.78499]
[1729558524854,0.55,2642.3,2641.9,3.0]
[1729558525356,0.55,2642.3,2642.0,3.78497]
[1729558526059,0.55,2642.3,2641.9,3.0]
[1729558526238,0.55,2642.3,2642.1,3.78483]
[1729558527163,0.55,2642.3,2641.9,3.78514]
[1729558527523,0.55,2642.3,2642.0,3.78492]
[1729558528363,0.55,2642.3,2641.9,3.78514]
[1729558528566,0.55,2642.3,2642.1,3.78484]
[1729558529074,0.55,2642.3,2641.8,1.6523]
[1729558529364,0.55,2642.3,2640.7,3.2784038]
[1729558529365,4.33544,2641.7,2641.2,1.578]
[1729558529561,0.55,2641.7,2641.5,3.78564]
[1729558529765,0.55,2641.7,2641.3,3.78593]
[1729558529929,0.55,2641.7,2641.4,3.78587]
[1729558530892,0.55,2641.7,2641.5,3.78569]
[1729558531281,0.55,2641.7,2641.5,7.57133]
[1729558531457,0.55,2641.7,2641.6,3.78558]
[1729558531659,0.55,2641.7,2641.6,5.33508]
[1729558531867,0.55,2641.7,2641.5,3.78564]
[1729558532068,0.55,2641.7,2641.5,8.57489]
[1729558532597,0.55,2641.7,2641.5,4.78925]
[1729558533460,2.1697,2641.7,2641.3,3.78594]
[1729558534697,2.1697,2641.7,2641.3,3.78592]
[1729558534897,0.55,2641.8,2641.4,3.78583]
[1729558535314,0.55,2641.8,2641.3,3.78592]
[1729558535527,0.55,2641.8,2641.4,0.38616353]
[1729558536101,4.25121461,2641.8,2641.4,0.38616353]
[1729558536282,0.55,2641.4,2641.0,1.6254]
[1729558536487,0.55,2641.4,2640.7,3.78681]
[1729558536488,9.68609461,2641.4,2640.8,4.5166]
[1729558536693,9.68609461,2641.4,2640.7,7.57363]
[1729558536694,0.55,2641.1,2640.7,3.78681]
[1729558536996,0.55,2641.3,2641.0,3.78644]
[1729558537193,0.55,2641.3,2641.1,3.78629]
[1729558537395,5.35021461,2641.7,2641.1,3.78622]
[1729558537580,0.55,2641.6,2641.2,3.78607]
[1729558538214,0.55,2641.6,2641.1,3.78622]
[1729558538398,22.67685545,2642.0,2641.5,3.78572]
[1729558538610,3.70121461,2642.0,2641.5,5.29052]
[1729558538991,3.70121461,2642.0,2641.5,5.29044]
[1729558539333,5.32847,2642.1,2641.3,1.5649]
[1729558539334,3.70121461,2641.6,2641.3,1.5649]
[1729558539492,8.99850461,2641.6,2641.2,3.0]
[1729558539911,0.55,2641.5,2641.2,3.0]
[1729558540324,0.55,2641.5,2641.2,6.78609]
[1729558540491,0.55,2641.6,2641.3,1.5155]
[1729558540695,0.55,2641.8,2641.3,1.5155]
[1729558540917,0.55,2641.8,2641.4,3.0]
[1729558540918,0.55,2641.6,2641.4,3.0]
[1729558541122,0.55,2641.6,2641.3,1.5155]
[1729558541387,0.55,2641.6,2641.1,3.78623]
[1729558541388,0.55,2641.4,2641.2,3.0]
[1729558541591,0.55,2641.4,2641.1,3.78619]
[1729558541834,0.55,2641.4,2640.9,6.78649]
[1729558542141,0.55,2641.4,2641.0,3.0]
[1729558543592,0.55,2641.4,2641.0,3.78641]
[1729558543989,1.5066,2641.3,2640.9,3.0]
[1729558544195,0.55,2641.2,2640.9,3.0]
[1729558546549,0.55,2641.2,2640.9,6.78658]
[1729558547205,0.55,2641.2,2640.9,3.0]
[1729558547523,0.55,2641.2,2640.9,6.78658]
[1729558548043,0.55,2641.2,2640.9,3.0]
[1729558548621,0.55,2641.2,2641.0,3.78642]
[1729558549267,0.55,2641.2,2640.9,3.0]
[1729558549633,0.55,2641.2,2640.9,6.78656]
[1729558553066,0.55,2641.2,2641.1,3.7863]
[1729558560184,1.526,2641.9,2641.6,3.78554]
[1729558560978,1.5444,2642.1,2641.6,3.78554]
[1729558561152,3.78516,2641.9,2641.6,1.5695]
[1729558561355,3.78516,2641.9,2641.5,3.0]
[1729558561688,5.06673546,2641.9,2641.4,3.7858]
[1729558562181,0.55,2641.8,2641.4,3.78579]
[1729558562559,0.55,2641.8,2641.4,3.78578]
[1729558562756,0.55,2642.0,2641.5,3.78564]
[1729558562960,0.55,2642.0,2641.6,3.78555]
[1729558563457,0.55,2642.0,2641.4,7.57152]
[1729558563790,0.55,2642.0,2641.5,3.78571]
[1729558565367,0.55,2642.0,2641.6,3.78548]
[1729558565682,3.78588,2641.4,2640.7,1.5421]
[1729558565904,0.55,2641.3,2640.9,3.0]
[1729558566102,0.55,2641.3,2640.9,6.78654]
[1729558566745,0.55,2641.3,2640.7,1.5421]
[1729558566987,0.55,2641.3,2641.0,3.0]
[1729558567146,0.55,2641.3,2640.8,3.78661]
[1729558567459,0.55,2641.3,2640.9,3.0]
[1729558568298,0.55,2641.3,2640.4,1.6494]
[1729558568299,0.55,2640.9,2640.4,1.6494]
[1729558568450,0.55,2640.7,2640.2,3.78757]
[1729558568797,4.33688,2640.7,2640.2,3.78757]
[1729558569476,3.70121461,2640.6,2640.1,0.01896447]
[1729558569771,0.55,2640.5,2640.0,3.78779]
[1729558569975,0.55,2640.5,2639.4,1.6274]
[1729558569976,1.5876,2640.4,2639.4,1.6274]
[1729558570175,0.55,2640.3,2639.6,3.78835]
[1729558570351,0.55,2640.3,2640.0,3.78781]
[1729558570556,1.5876,2640.6,2640.0,3.78781]
[1729558570557,0.55,2640.5,2640.0,3.78781]
[1729558570754,1.89127846,2640.5,2640.0,3.78781]
[1729558571353,0.55,2640.5,2640.1,3.78773]
[1729558572466,0.55,2640.5,2640.0,3.0]
[1729558572705,4.33721,2640.5,2640.0,3.0]
[1729558573196,0.55,2640.5,2640.0,6.78785]
[1729558573605,1.6358,2640.4,2640.0,3.0]
[1729558573777,0.55,2640.3,2640.0,3.0]
[1729558575198,0.55,2640.3,2639.9,3.78789]
[1729558575705,0.55,2640.3,2639.9,7.57581]
[1729558576307,0.55,2640.3,2639.9,3.78789]
[1729558576458,0.55,2640.3,2639.9,7.57583]
[1729558577164,0.55,2640.3,2640.0,3.78779]
[1729558580009,0.55,2640.3,2639.9,3.78789]
[1729558580219,0.55,2640.5,2640.2,3.78759]
[1729558581115,0.55,2640.5,2640.0,5.39826]
[1729558581418,0.55,2640.5,2640.0,7.57552]
[1729558581583,0.55,2640.5,2640.0,3.78776]
[1729558581910,0.55,2640.5,2640.2,3.78757]
[1729558584212,0.55,2640.5,2640.0,3.78779]
[1729558584551,0.55,2640.5,2640.0,3.78778]
[1729558584820,0.55,2640.5,2640.0,7.57556]
[1729558585816,0.55,2640.5,2640.1,3.78773]
[1729558585985,0.55,2640.5,2640.0,3.78778]
[1729558588009,0.55,2640.5,2640.1,3.78772]
[1729558588439,1.51063146,2640.5,2639.8,5.39858]
[1729558588733,2.0549,2640.3,2639.7,3.0]
[1729558589020,2.0549,2640.3,2639.6,1.5524]
[1729558589183,2.0549,2640.3,2639.8,3.78808]
[1729558589584,2.0549,2640.3,2639.9,3.78801]
[1729558590119,2.0549,2640.3,2640.0,3.78787]
[1729558591409,2.0549,2640.3,2639.8,3.78808]
[1729558591410,2.0549,2640.3,2639.8,7.57614]
[1729558591897,2.0549,2640.3,2639.9,3.78798]